fUSD/lending_fUSD_20240628
["ID","MTS","AMOUNT","RATE_DAILY","PERIOD"]
[330592553,1719600633227,-181.44669515,0.000149,2]
[330592554,1719600633237,-1000.0,0.00014986,2]
[330592555,1719600633246,-150.0,0.00014999,2]
[330592556,1719600633255,-189249.03432859,0.00015,2]
[330592557,1719600633267,-16283.67235801,0.00015,2]
[330592558,1719600633279,-11945.40397909,0.00015,2]
[330592559,1719600633291,-418.9295176,0.00015,2]
[330592560,1719600633302,-472.04,0.00015,2]
[330592561,1719600633634,-1951.14740453,0.00015,2]
[330592562,1719600633645,-1565.31339387,0.00015,2]
[330592563,1719600633657,-3602.44257493,0.00015,2]
[330592564,1719600633667,-20219.99783234,0.00015,2]
[330592565,1719600633681,-168173.86515541,0.00015,2]
[330592566,1719600633693,-1270.36620858,0.00015,2]
[330592568,1719600638638,-33343.92228542,0.00015,2]
[330592571,1719600638650,-394.14575585,0.00015,2]
[330592573,1719600638662,-623.44199861,0.00015,2]
[330592575,1719600638675,-6672.78909999,0.00015,2]
[330592578,1719600638694,-3146.7938,0.00015,2]
[330592579,1719600638706,-30082.50000003,0.00015,2]
[330592580,1719600638720,-726710.05661796,0.00015,2]
[330592581,1719600638730,-5000.0,0.00015,2]
[330592582,1719600638740,-3964.09852975,0.00015,2]
[330592583,1719600638750,-622.21690927,0.00015,2]
[330592584,1719600638760,-169.6676061,0.00015,2]
[330592585,1719600638771,-273195.3068525,0.00015,2]
[330592589,1719600639024,-719.922077,0.00015,2]
[330592591,1719600639036,-321.89,0.00015,2]
[330592593,1719600639049,-292.04521374,0.00015,2]
[330592635,1719600640940,-2518366.07452794,0.00015,2]
[330592637,1719600640952,-10693.98449672,0.00015,2]
[330592638,1719600640968,-148704.22827191,0.00015,2]
[330592639,1719600640979,-18747.40570325,0.00015,2]
[330592646,1719600644115,-538266.71151897,0.00015,2]
[330592651,1719600647351,-438.177622,0.00015,2]
[330592652,1719600647752,-1004.55867731,0.00015,2]
[330592669,1719601831838,-171.75,0.00012087,2]
[330592670,1719601831848,-79.57990381,0.00013081,2]
[330592676,1719601832413,-469.37009619,0.00013081,2]
[330592677,1719601832423,-620.10900742,0.000137,2]
[330592678,1719601832432,-620.10900743,0.000137,2]
[330592679,1719601832443,-233.5761,0.000138,2]
[330592680,1719601832452,-1000.0,0.000138,2]
[330592681,1719601832462,-1521.50807736,0.000138,2]
[330592682,1719601832473,-1230.78807392,0.000138,2]
[330592683,1719601832484,-1203.06,0.000138,2]
[330592684,1719601832495,-424.71363053,0.000138,2]
[330592685,1719601837965,-370.27272899,0.000138,2]
[330592686,1719601837977,-307.40360557,0.000138,2]
[330592687,1719601837992,-561.82928208,0.000138,2]
[330592688,1719601838004,-302.96443277,0.000138,2]
[330592690,1719601838349,-20612.5515836,0.000138,2]
[330592699,1719601840109,-336.95756609,0.000138,2]
[330592700,1719601840123,-528.23091405,0.000138,2]
[330592701,1719601840135,-528.5269001,0.000138,2]
[330592702,1719601840300,-397.34954669,0.000138,2]
[330592703,1719601840311,-16705.55278223,0.000138,2]
[330592718,1719601842820,-7527.52000004,0.000138,2]
[330592719,1719601843363,-12924.08427598,0.000138,2]
[330592720,1719601843373,-245000.0,0.000138,2]
[330592721,1719601843382,-155.0,0.00014099,2]
[330592722,1719601843391,-6220.54215746,0.00014499,2]
[330592723,1719601843402,-3964.68015786,0.000146,2]
[330592724,1719601843411,-1439.95543001,0.000148,2]
[330592725,1719601843424,-250.0,0.00014814,2]
[330592726,1719601843433,-179.86920528,0.000149,2]
[330592727,1719601843442,-3402.51,0.000149,2]
[330592728,1719601843457,-150.99,0.000149,2]
[330592729,1719601843466,-3104.9,0.000149,2]
[330592730,1719601843475,-2560.77007865,0.000149,2]
[330592731,1719601843485,-307.63495464,0.000149,2]
[330592732,1719601843494,-258605.77525909,0.00015,2]
[330592733,1719601843507,-5748.17421115,0.00015,2]
[330592734,1719601843518,-11260.56224255,0.00015,2]
[330592735,1719601843531,-988.0,0.00015,2]
[330592736,1719601843543,-394.58101345,0.00015,2]
[330592737,1719601843555,-846.50599989,0.00015,2]
[330592748,1719601845924,-1504.37069116,0.00015,2]
[330592749,1719601845935,-16431.95963135,0.00015,2]
[330592750,1719601845946,-5987.01390136,0.00015,2]
[330592751,1719601845957,-445.62000001,0.00015,2]
[330592796,1719601846954,-477.47355398,0.00015,2]
[330592798,1719601846965,-1829.7458757,0.00015,2]
[330592800,1719601846977,-843.8505457,0.00015,2]
[330592802,1719601846988,-1800.44920986,0.00015,2]
[330592815,1719601847157,-3074.65,0.00015,2]
[330592816,1719601847176,-15532.74296992,0.00015,2]
[330592817,1719601847187,-1336.47804719,0.00015,2]
[330592818,1719601847199,-617.95550003,0.00015,2]
[330592819,1719601847211,-1053.11500002,0.00015,2]
[330592820,1719601847221,-667.2379924,0.00015,2]
[330592854,1719602799580,11031.02972998,0.00011199,2]
[330592855,1719602902576,181.02431915,0.00011199,2]
[330592857,1719602902909,450.0,0.00011199,2]
[330592858,1719602904437,200.2050977,0.00011199,2]
[330592860,1719602909126,334.34441524,0.00011199,2]
[330592861,1719602912774,7549.40604158,0.00011199,2]
[330592862,1719602915502,263.28070068,0.00011199,2]
[330592864,1719602975442,3391.7728628,0.00011199,2]
[330592866,1719603017821,7549.40604158,0.00011199,2]
[330592872,1719603033329,-268.07010932,0.00011562,2]
[330592873,1719603033340,-253.42989068,0.00011562,2]
[330592874,1719603033350,-411.5794998,0.00013372,2]
[330592875,1719603033360,-618.32485274,0.00013472,2]
[330592876,1719603033372,-714.50643512,0.00013472,2]
[330592877,1719603033384,-308.4398,0.00013472,2]
[330592878,1719603033397,-497.39288357,0.00013472,2]
[330592879,1719603033409,-1031.62934149,0.00013472,2]
[330592880,1719603033421,-454.25,0.00013472,2]
[330592881,1719603033812,-875.15807274,0.00013472,2]
[330592886,1719603039094,-3391.7728628,0.00013574,2]
[330592888,1719603039104,-250.0,0.00013588,2]
[330592890,1719603039117,-2053.02,0.00013664,2]
[330592891,1719603039130,-317.35168101,0.00013699,2]
[330592893,1719603039141,-24437.85545619,0.000137,2]
[330592896,1719603039155,-465.50057494,0.000137,2]
[330592898,1719603039167,-1642.6789177,0.000137,2]
[330592900,1719603039180,-673.38953007,0.000137,2]
[330592902,1719603039194,-383.65,0.000137,2]
[330592904,1719603039209,-261.9,0.000137,2]
[330592905,1719603039222,-849.33,0.000137,2]
[330592906,1719603039234,-325.82,0.000137,2]
[330592907,1719603039247,-1775.18020249,0.000137,2]
[330592908,1719603039259,-9963.3401676,0.000137,2]
[330592909,1719603039728,-25374.05106926,0.000137,2]
[330592910,1719603039740,-3187.40088175,0.000137,2]
[330592911,1719603039752,-1000.0,0.000137,2]
[330592912,1719603039762,-169.52,0.00013709,2]
[330592913,1719603039772,-155.0,0.00013736,2]
[330592914,1719603039782,-158.87926363,0.00013736,2]
[330592915,1719603039792,-2828.06320888,0.00013759,2]
[330592916,1719603039802,-175.87,0.00013761,2]
[330592917,1719603039812,-1947.49938483,0.00013799,2]
[330592918,1719603039822,-521.5,0.00013826,2]
[330592919,1719603039832,-155.1014532,0.00013849,2]
[330592920,1719603039843,-283.69727751,0.00013889,2]
[330592921,1719603039854,-155.0,0.00013889,2]
[330592922,1719603039864,-1000.0,0.00013981,2]
[330592923,1719603039874,-191.35,0.0001409,2]
[330592924,1719603039884,-1054.51068328,0.00014099,2]
[330592925,1719603039895,-1054.51068328,0.00014099,2]
[330592926,1719603039905,-169.19062343,0.00014393,2]
[330592927,1719603039915,-202.05047868,0.00014393,2]
[330592928,1719603039925,-842.701685,0.00014521,2]
[330592929,1719603039935,-499.99,0.00014849,2]
[330592930,1719603039946,-254.05078128,0.00014849,2]
[330592931,1719603039956,-1070.42703277,0.00014849,2]
[330592932,1719603039966,-754.13161307,0.00014849,2]
[330592933,1719603039976,-18.10265805,0.00014879,2]
[330592934,1719603039988,-481.89734195,0.00014879,2]
[330592935,1719603039998,-500.0,0.0001488,2]
[330592936,1719603040009,-500.0,0.0001488,2]
[330592937,1719603040018,-269.53265805,0.0001488,2]
[330592938,1719603040032,-230.46734195,0.0001488,2]
[330592939,1719603040042,-788.1795791,0.00014899,2]
[330592940,1719603040052,-182.08348635,0.000149,2]
[330592941,1719603040062,-1470.46281003,0.000149,2]
[330592942,1719603040072,-1192.27470497,0.000149,2]
[330592943,1719603040085,-3414.00875734,0.000149,2]
[330592944,1719603040096,-283.87820514,0.000149,2]
[330592945,1719603040106,-167.97127447,0.0001499,2]
[330592946,1719603040118,-491.29,0.0001499,3]
[330592947,1719603040130,-858.85176305,0.00014999,2]
[330592948,1719603040143,-141.14823695,0.00014999,2]
[330592949,1719603040155,-2820.12930674,0.00015,2]
[330592951,1719603040168,-507.20336378,0.00015,2]
[330592952,1719603040180,-4216.37536217,0.00015,2]
[330592953,1719603040192,-798.97588266,0.00015,2]
[330592962,1719603041131,-24690.2441784,0.00015,2]
[330592964,1719603041143,-421.8,0.00015,2]
[330592967,1719603041156,-2434.6322,0.00015,2]
[330592969,1719603041168,-1312.18090868,0.00015,2]
[330592971,1719603041180,-19832.11977958,0.00015,2]
[330592973,1719603041193,-3255.0,0.00015,2]
[330592975,1719603041204,-4832.22556236,0.00015,2]
[330592977,1719603041216,-17756.86832099,0.00015,2]
[330592997,1719603041396,-412.85903943,0.00013989,2]
[330592998,1719603041406,-38.04019264,0.00015,2]
[330593001,1719603041418,-936.99658696,0.00015,2]
[330593003,1719603041429,-783.73254789,0.00015,2]
[330593075,1719603043619,-258.76245931,0.00014999,2]
[330593076,1719603043630,-398.63727477,0.00015,2]
[330593077,1719603043643,-300.08603421,0.00015,2]
[330593078,1719603043655,-986.84443573,0.00015,2]
[330593079,1719603043666,-1370.91809665,0.00015,2]
[330593080,1719603043678,-782.94395305,0.00015,2]
[330593081,1719603043690,-280342.62724299,0.00015,2]
[330593082,1719603043704,-26821.11545556,0.00015,2]
[330593083,1719603043715,-10750.945965,0.00015,2]
[330593084,1719603043727,-685.50165271,0.00015,2]
[330593085,1719603043738,-1016.1,0.00015,2]
[330593086,1719603043750,-719.07075033,0.00015,2]
[330593087,1719603043762,-3641.67389993,0.00015,2]
[330593088,1719603043776,-4303.63783665,0.00015,2]
[330593089,1719603043788,-6517.10792,0.00015,2]
[330593090,1719603043799,-764.825,0.00015,2]
[330593099,1719603044292,-605.0,0.00015,2]
[330593101,1719603044304,-405.5664405,0.00015,2]
[330593103,1719603044316,-2129.66230494,0.00015,2]
[330593105,1719603044328,-1405.2,0.00015,2]
[330593107,1719603044340,-17365.33401791,0.00015,2]
[330593109,1719603044351,-635.69802414,0.00015,2]
[330593112,1719603044363,-3924.53627189,0.00015,2]
[330593131,1719603046671,-130689.50050327,0.00015,2]
[330593132,1719603046683,-1590.66598924,0.00015,2]
[330593133,1719603046695,-48544.29601561,0.00015,2]
[330593134,1719603046707,-1150.52,0.00015,2]
[330593135,1719603046725,-29608.72670689,0.00015,2]
[330593136,1719603046737,-26046.87249875,0.00015,2]
[330593137,1719603046749,-9411.26014652,0.00015,2]
[330593138,1719603047365,-25574.52361261,0.00015,2]
[330593139,1719603047377,-1887.9881878,0.00015,2]
[330593140,1719603047389,-660.16000002,0.00015,2]
[330593141,1719603047400,-907.515,0.00015,2]
[330593142,1719603047412,-631.62907595,0.00015,2]
[330593143,1719603047423,-16279.43812512,0.00015,2]
[330593144,1719603074057,319.60079117,0.00013574,7]
[330593147,1719603213443,3391.7728628,0.00011199,2]
[330593148,1719603221401,12311.51936233,0.00011199,2]
[330593151,1719603257634,7549.40604158,0.00011199,2]
[330593152,1719603268358,4989.41324129,0.00011199,2]
[330593153,1719603360165,7549.40604158,0.00011199,2]
[330593154,1719603360908,1054.51068328,0.00011199,2]
[330593156,1719603389506,3391.7728628,0.00011199,2]
[330593158,1719603397902,4029.7672581,0.0001,2]
[330593159,1719603400651,754.13161307,0.00011199,2]
[330593160,1719603437377,158.72647518,0.00011199,2]
[330593162,1719603455165,294.68098322,0.00011199,2]
[330593163,1719603464797,7549.40604158,0.0001,2]
[330593164,1719603477212,752.86200311,0.00011199,2]
[330593165,1719603484911,283.69727751,0.00011199,2]
[330593166,1719603487038,306.87258158,0.00011199,2]
[330593167,1719603493072,3391.7728628,0.00011199,2]
[330593168,1719603499180,316.14,0.00011199,2]
[330593170,1719603550252,155.0,0.00011199,2]
[330593171,1719603569892,7549.40604158,0.00011199,2]
[330593172,1719603599642,7549.40604158,0.00011199,2]
[330593173,1719603696340,352.90432574,0.00011199,2]
[330593174,1719603703113,1053.3029002,0.00011199,2]
[330593175,1719603717260,2825.72260932,0.00011199,2]
[330593176,1719603729466,3391.7728628,0.00011199,2]
[330593177,1719603743605,533.11260756,0.00011199,2]
[330593178,1719603762981,265.35687284,0.00011199,2]
[330593181,1719603901296,684.52882311,0.00011199,2]
[330593182,1719603963273,3391.7728628,0.00011199,2]
[330593183,1719603988932,282.59188402,0.00011199,2]
[330593184,1719604057994,717.3917686,0.00011199,2]
[330593186,1719604162142,5002.39,0.00025,60]
[330593187,1719604179327,492.65,0.00011294,2]
[330593188,1719604190592,531.7055518,0.00011199,2]
[330593189,1719604197482,3391.7728628,0.00011199,2]
[330593190,1719604199304,155.0,0.00011199,2]
[330593191,1719604227847,3391.7728628,0.00011199,2]
[330593204,1719604232082,-396.51876854,0.00012273,2]
[330593205,1719604232126,-16.34027089,0.00012273,2]
[330593206,1719604232138,-285.32472911,0.00012302,2]
[330593207,1719604232285,-83.39092595,0.00012302,2]
[330593208,1719604232295,-430.54118397,0.00012314,2]
[330593209,1719604232305,-364.12910623,0.00012314,2]
[330593210,1719604232315,-293.52980578,0.00012314,2]
[330593211,1719604232325,-1000.0,0.00012999,2]
[330593212,1719604232336,-250.0,0.00013014,2]
[330593213,1719604232346,-2004.4104095,0.00013128,2]
[330593214,1719604232356,-209.48232641,0.00013128,2]
[330593215,1719604232365,-163.71199827,0.00013128,2]
[330593216,1719604232375,-2225.2837,0.00013247,2]
[330593217,1719604232385,-10383.0,0.00013347,2]
[330593218,1719604232395,-19044.0,0.00013448,2]
[330593220,1719604232404,-438.16706068,0.00013472,2]
[330593222,1719604232414,-671.6187311,0.00013472,2]
[330593224,1719604232424,-158.22591328,0.00013472,2]
[330593225,1719604232434,-150.99,0.00013474,2]
[330593226,1719604232443,-276.28879439,0.00013516,2]
[330593227,1719604232454,-217.81272639,0.00013516,2]
[330593228,1719604232464,-277.03532504,0.00013543,2]
[330593229,1719604232473,-155.0,0.00013543,2]
[330593230,1719604232483,-155.0,0.00013543,2]
[330593231,1719604232493,-492.65,0.00013558,2]
[330593232,1719604232509,-485.24402982,0.00013574,2]
[330593233,1719604232519,-236.33739747,0.00013574,2]
[330593234,1719604232529,-3402.51,0.00013736,2]
[330593235,1719604232539,-173.76628846,0.00013736,2]
[330593236,1719604232548,-1719.96025146,0.00013736,2]
[330593237,1719604232558,-155.0,0.00013802,2]
[330593238,1719604232567,-297.36585903,0.00013849,2]
[330593239,1719604232580,-39099.43174839,0.0001387,2]
[330593240,1719604232590,-1339.68119719,0.000139,2]
[330593241,1719604232599,-2500.0,0.000139,2]
[330593242,1719604232610,-226.74750375,0.000139,2]
[330593243,1719604232619,-174.0,0.00013961,2]
[330593244,1719604232630,-200.06,0.00013961,2]
[330593245,1719604232640,-4145.65511607,0.00013964,2]
[330593246,1719604232650,-758.431516,0.00013973,2]
[330593247,1719604232660,-647.26467047,0.00013989,2]
[330593248,1719604232670,-195.9976809,0.00013989,2]
[330593249,1719604232679,-1463.67371913,0.00013999,2]
[330593250,1719604232689,-1285.71256166,0.00013999,2]
[330593251,1719604232701,-242463.96313433,0.00014,2]
[330593252,1719604232713,-3039.95,0.00014,2]
[330593253,1719604238238,-484.9491557,0.00013128,2]
[330593254,1719604238248,-175.48545791,0.00013128,2]
[330593255,1719604238258,-491.22811583,0.00013516,2]
[330593256,1719604238267,-62.16315561,0.00014,2]
[330593260,1719604240055,-794.70313431,0.00014,2]
[330593261,1719604240068,-449.3685477,0.00014,2]
[330593262,1719604240080,-1281.22324472,0.00014,2]
[330593263,1719604240091,-2260.45717588,0.00014,2]
[330593264,1719604240204,-5277.91856876,0.00014,2]
[330593265,1719604240352,-70470.58836194,0.00014,2]
[330593274,1719604243147,-10536.57535637,0.00014,2]
[330593293,1719604243286,-3270.22817816,0.00014,2]
[330593295,1719604243297,-310.0,0.00014,2]
[330593302,1719604243432,-463.39813441,0.00014,2]
[330593303,1719604243508,-432.0,0.00014,2]
[330593304,1719604243592,-2295.6112263,0.00014,2]
[330593325,1719604246898,-768.01109788,0.00014,2]
[330593326,1719604247363,-939.883994,0.00014,2]
[330593327,1719604247419,-2347.40223909,0.00014,2]
[330593328,1719604247665,-777.38,0.00014,2]
[330593332,1719604424501,3391.7728628,0.00011199,2]
[330593336,1719604518740,1628.98358933,0.00011199,2]
[330593348,1719604598669,720.86438453,0.00011199,2]
[330593349,1719604607410,6223.59863334,0.00011199,2]
[330593350,1719604641227,163.71199827,0.00011199,2]
[330593351,1719604647476,155.13544744,0.00011199,2]
[330593352,1719604651402,201.954167,0.00011199,2]
[330593353,1719604651626,647.26467047,0.00011199,2]
[330593355,1719604658965,364.12910623,0.00011199,2]
[330593356,1719604659319,158.74054922,0.00011199,2]
[330593357,1719604659450,155.0,0.00011199,2]
[330593359,1719604676174,155.29010385,0.00011199,2]
[330593360,1719604677047,269.47073967,0.00011199,2]
[330593361,1719604682331,155.50596887,0.00011199,2]
[330593362,1719604701301,366.00199876,0.00011199,2]
[330593363,1719604702512,155.0,0.00011199,2]
[330593365,1719604717288,1013.16514783,0.00011199,2]
[330593366,1719604718222,277.40420016,0.00011199,2]
[330593367,1719604718295,155.0,0.00011199,2]
[330593370,1719604819314,117713.60622514,0.00011199,2]
[330593372,1719604858474,660.88004316,0.00011199,2]
[330593375,1719604909298,206.23389188,0.00011199,2]
[330593376,1719604912466,155.0,0.00011199,2]
[330593377,1719604921126,529.95804437,0.00011199,2]
[330593378,1719604942776,472.36022857,0.00011199,2]
[330593379,1719604943476,1717.78429592,0.00011199,2]
[330593380,1719604948031,516.52,0.00011027,2]
[330593381,1719604951534,180.15111946,0.00011199,2]
[330593383,1719605028798,1012.08948633,0.00011199,2]
[330593384,1719605072795,690.00328514,0.00011199,2]
[330593385,1719605095533,647.26467047,0.00011199,2]
[330593386,1719605099514,339.31808863,0.00011199,2]
[330593387,1719605100356,163.71199827,0.00011199,2]
[330593388,1719605119453,204.0953381,0.00011199,2]
[330593390,1719605266620,520.31171841,0.00011199,2]
[330593391,1719605393113,378.81590236,0.00011199,2]
[330593392,1719605413792,155.31762056,0.00011199,2]
[330593401,1719605432391,-412.1371017,0.00012273,2]
[330593402,1719605432401,-28.10691841,0.00012273,2]
[330593403,1719605432412,-128.03918333,0.00012273,2]
[330593404,1719605432421,-161.05117831,0.00012273,2]
[330593405,1719605432430,-235.38273328,0.00012273,2]
[330593406,1719605432440,-486.37391371,0.00012302,2]
[330593407,1719605432530,-513.62608629,0.00012302,2]
[330593408,1719605432540,-155.0,0.00012302,2]
[330593409,1719605432549,-646.49279203,0.00012302,2]
[330593410,1719605432559,-243.57159997,0.00012302,2]
[330593411,1719605432568,-155.0,0.00012314,2]
[330593412,1719605432578,-1000.0,0.00012614,2]
[330593413,1719605432589,-358.22952074,0.00012633,2]
[330593414,1719605432600,-428.32614833,0.00012633,2]
[330593418,1719605432769,-221.32433093,0.00012633,2]
[330593420,1719605432779,-174.0,0.00012675,2]
[330593421,1719605432788,-3015.78585323,0.00012705,2]
[330593422,1719605432799,-1026.62414677,0.00012705,2]
[330593423,1719605432809,-762.65,0.0001272,2]
[330593424,1719605432819,-8249.87,0.00012723,2]
[330593425,1719605432829,-176.55,0.00012771,2]
[330593426,1719605432839,-1164.2,0.00012771,2]
[330593427,1719605432849,-2128.38,0.00012771,2]
[330593428,1719605432859,-6857.1,0.00012845,2]
[330593429,1719605432869,-250.0,0.0001285,2]
[330593430,1719605432879,-250.0,0.00012904,2]
[330593431,1719605432891,-177.05,0.00013034,2]
[330593432,1719605432901,-516.52,0.0001329,2]
[330593433,1719605432910,-169.52,0.00013399,2]
[330593434,1719605432919,-258.76245931,0.00013516,2]
[330593435,1719605432929,-258.614328,0.00013516,2]
[330593436,1719605432939,-3104.9,0.00013542,2]
[330593437,1719605432948,-254.9832874,0.00013542,2]
[330593438,1719605433015,-434.7867126,0.00013542,2]
[330593439,1719605433024,-538.4362689,0.00013574,2]
[330593440,1719605433034,-538.4362689,0.00013574,2]
[330593441,1719605433044,-280.63,0.00013699,2]
[330593442,1719605433054,-559.19857836,0.00013849,2]
[330593443,1719605433063,-150.0,0.00013859,2]
[330593444,1719605433073,-2355.25327,0.0001386,2]
[330593445,1719605433084,-2355.25327,0.0001386,2]
[330593446,1719605433094,-2355.25327,0.0001388,2]
[330593447,1719605433103,-220.21,0.0001389,2]
[330593448,1719605433113,-437.83490328,0.00013899,2]
[330593449,1719605433122,-602.7287,0.000139,2]
[330593450,1719605433131,-177.5368,0.000139,2]
[330593451,1719605433140,-155.0,0.000139,2]
[330593452,1719605433150,-606.8409,0.000139,2]
[330593453,1719605433159,-1000.0,0.000139,2]
[330593454,1719605433169,-500.0,0.000139,2]
[330593455,1719605433178,-315.6806,0.000139,2]
[330593456,1719605433188,-4021.9417,0.000139,2]
[330593457,1719605433197,-3404.5372,0.000139,2]
[330593458,1719605433207,-1015.9578,0.000139,2]
[330593459,1719605433216,-5126.0387,0.000139,2]
[330593460,1719605433226,-13331.42264167,0.000139,2]
[330593461,1719605433238,-9741.99045833,0.000139,2]
[330593462,1719605433248,-1000.0,0.000139,2]
[330593463,1719605433257,-1196.43256254,0.000139,2]
[330593464,1719605433267,-2355.25328,0.000139,2]
[330593465,1719605433276,-317.9416966,0.000139,2]
[330593466,1719605433286,-2355.25327,0.0001392,2]
[330593467,1719605433295,-173.22,0.00013937,2]
[330593468,1719605433305,-2355.25327,0.0001394,2]
[330593469,1719605433314,-201.6567933,0.0001399,2]
[330593470,1719605433324,-23357.22755406,0.00013998,2]
[330593471,1719605433334,-543.83180554,0.00013999,2]
[330593472,1719605433344,-550514.16501835,0.00014,2]
[330593473,1719605433354,-155.0,0.00014,2]
[330593474,1719605433364,-155.0,0.00014099,2]
[330593475,1719605433374,-1000.0,0.0001419,2]
[330593476,1719605433384,-714.657097,0.00014247,2]
[330593477,1719605433393,-150.0,0.00014726,2]
[330593478,1719605433403,-150.0,0.0001473,2]
[330593479,1719605433413,-150.0,0.00014733,2]
[330593480,1719605433423,-150.0,0.00014735,2]
[330593481,1719605433434,-150.0,0.00014737,2]
[330593482,1719605433444,-150.0,0.00014739,2]
[330593483,1719605433454,-150.0,0.00014746,2]
[330593484,1719605433463,-150.0,0.00014747,2]
[330593485,1719605433474,-150.0,0.00014749,2]
[330593486,1719605433483,-150.0,0.0001475,2]
[330593487,1719605433493,-150.0,0.00014752,2]
[330593488,1719605433502,-150.0,0.00014755,2]
[330593489,1719605433512,-150.0,0.00014756,2]
[330593490,1719605433522,-150.0,0.00014756,2]
[330593491,1719605433533,-150.0,0.00014765,2]
[330593492,1719605433543,-150.0,0.0001477,2]
[330593493,1719605433552,-150.0,0.00014772,2]
[330593494,1719605433562,-150.0,0.00014773,2]
[330593495,1719605433572,-150.0,0.00014774,2]
[330593496,1719605433581,-150.0,0.0001478,2]
[330593497,1719605433593,-150.0,0.00014786,2]
[330593498,1719605433603,-150.0,0.00014787,2]
[330593499,1719605433614,-150.0,0.00014788,2]
[330593500,1719605433624,-150.0,0.00014789,2]
[330593501,1719605433633,-150.0,0.00014793,2]
[330593502,1719605433643,-150.0,0.00014793,2]
[330593503,1719605433882,-150.0,0.00014796,2]
[330593504,1719605433972,-150.0,0.00014801,2]
[330593505,1719605433985,-150.0,0.00014802,2]
[330593506,1719605433993,-150.0,0.00014806,2]
[330593507,1719605434002,-150.0,0.00014817,2]
[330593508,1719605434010,-150.0,0.0001482,2]
[330593509,1719605434019,-150.0,0.00014833,2]
[330593510,1719605434028,-150.0,0.00014834,2]
[330593511,1719605434038,-150.0,0.00014835,2]
[330593512,1719605434046,-150.0,0.00014836,2]
[330593513,1719605434055,-150.0,0.00014836,2]
[330593514,1719605434064,-150.0,0.00014841,2]
[330593515,1719605434073,-150.0,0.00014843,2]
[330593516,1719605434083,-150.0,0.00014845,2]
[330593517,1719605434092,-150.0,0.00014854,2]
[330593518,1719605434101,-150.0,0.00014859,2]
[330593519,1719605434111,-150.0,0.00014859,2]
[330593520,1719605434120,-150.0,0.00014867,2]
[330593521,1719605434129,-150.0,0.00014869,2]
[330593522,1719605434138,-150.0,0.00014874,2]
[330593523,1719605434147,-500.0,0.0001488,2]
[330593524,1719605434156,-150.0,0.00014882,2]
[330593525,1719605434166,-150.0,0.00014884,2]
[330593526,1719605434176,-150.0,0.00014884,2]
[330593527,1719605434185,-150.0,0.00014884,2]
[330593528,1719605434194,-150.0,0.00014886,2]
[330593529,1719605434204,-150.0,0.00014889,2]
[330593530,1719605434213,-150.0,0.00014889,2]
[330593531,1719605434223,-150.0,0.0001489,2]
[330593532,1719605434234,-150.0,0.00014891,2]
[330593533,1719605434243,-150.0,0.00014891,2]
[330593534,1719605434252,-150.0,0.00014893,2]
[330593535,1719605434261,-150.0,0.00014894,2]
[330593536,1719605434270,-150.0,0.00014897,2]
[330593537,1719605434279,-150.0,0.00014898,2]
[330593538,1719605434288,-1383.7554,0.000149,2]
[330593539,1719605434298,-150.0,0.00014901,2]
[330593540,1719605434308,-220.06,0.00014904,3]
[330593541,1719605434318,-150.0,0.00014906,2]
[330593542,1719605434328,-150.0,0.0001491,2]
[330593543,1719605434338,-150.0,0.00014914,2]
[330593544,1719605434348,-150.0,0.00014914,2]
[330593545,1719605434359,-150.0,0.00014916,2]
[330593546,1719605434369,-150.0,0.00014917,2]
[330593547,1719605434380,-150.0,0.00014918,2]
[330593548,1719605434390,-150.0,0.00014918,2]